bitfinex/quotes_SOLUSD_20250602
["timestamp","ask_amount","ask_price","bid_price","bid_amount"]
[1748880361928,38.8221352,153.17,153.14,6.52997257]
[1748880362243,38.8221352,153.15,153.12,16.32699659]
[1748880362541,38.8221352,153.14,153.13,26.0]
[1748880362727,38.8221352,153.14,153.12,16.32699659]
[1748880363139,38.8221352,153.14,153.13,26.0]
[1748880363340,38.8221352,153.14,153.12,16.32699659]
[1748880364035,38.8221352,153.15,153.14,32.52997257]
[1748880364242,38.8221352,153.15,153.09,16.3293783]
[1748880364446,0.14216157,153.14,153.1,6.53167864]
[1748880364637,38.8221352,153.11,153.1,6.53167864]
[1748880365569,38.8221352,153.11,153.07,6.53295877]
[1748880365737,38.8221352,153.08,153.03,16.33562024]
[1748880366072,38.8221352,153.04,152.97,6.53722952]
[1748880366365,38.8221352,152.98,152.97,6.53722952]
[1748880366564,1.78346157,153.06,153.0,26.0]
[1748880366565,1.6413,153.06,153.0,26.0]
[1748880366734,26.0,153.11,152.97,94.38858613]
[1748880366735,38.8221352,153.04,153.02,26.0]
[1748880367060,38.8221352,153.03,153.0,26.0]
[1748880367360,29.773972,153.08,152.97,63.66030332]
[1748880367361,38.8221352,153.01,152.97,63.66030332]
[1748880367562,38.8221352,153.0,152.99,26.0]
[1748880367751,38.8221352,153.0,152.97,22.88030332]
[1748880368059,38.8221352,152.98,152.97,48.88030332]
[1748880368269,38.8221352,152.98,152.97,22.88030332]
[1748880368561,38.8221352,152.98,152.97,48.88030332]
[1748880368763,38.8221352,152.98,152.97,22.88030332]
[1748880368937,38.8221352,152.98,152.97,6.53722952]
[1748880369138,38.8221352,152.98,152.97,32.53722952]
[1748880370443,38.8221352,152.99,152.97,32.53722952]
[1748880371866,38.8221352,152.98,152.97,6.53722952]
[1748880372535,38.8221352,152.99,152.97,22.88030332]
[1748880374264,38.8221352,152.99,152.97,16.3430738]
[1748880376570,38.8221352,153.03,152.98,64.8221352]
[1748880376766,38.8221352,153.02,152.98,64.8221352]
[1748880376941,38.8221352,153.02,152.98,26.0]
[1748880377144,38.8221352,153.01,152.98,26.0]
[1748880377561,17.0141,153.09,153.03,26.0]
[1748880377753,38.8221352,153.05,153.02,26.0]
[1748880377954,38.8221352,153.04,153.02,26.0]
[1748880378473,49.6621352,153.08,153.03,71.3568016]
[1748880378648,10.84,153.08,153.06,38.8221352]
[1748880378853,10.84,153.12,153.07,38.8221352]
[1748880379057,38.8221352,153.11,153.07,38.8221352]
[1748880379664,38.8221352,153.11,153.06,64.8221352]
[1748880379867,38.8221352,153.12,153.08,64.8221352]
[1748880380249,38.8221352,153.12,153.08,26.0]
[1748880380450,38.8221352,153.11,153.09,6.53210529]
[1748880382052,39.10645834,153.12,153.09,6.53210529]
[1748880383973,38.8221352,153.11,153.09,6.53210529]
[1748880384973,49.6621352,153.13,153.09,22.86236853]
[1748880385181,10.84,153.13,153.09,61.68450373]
[1748880385359,49.6621352,153.13,153.09,22.86236853]
[1748880386573,38.8221352,153.11,153.09,6.53210529]
[1748880386876,38.8221352,153.12,153.09,6.53210529]
[1748880387481,38.8221352,153.1,153.06,26.0]
[1748880387656,38.8221352,153.07,153.06,26.0]
[1748880387855,38.8221352,153.07,153.05,16.3335656]
[1748880388164,38.8221352,153.06,153.04,32.53423941]
[1748880388363,10.84,153.08,153.04,32.53423941]
[1748880388561,38.8221352,153.06,153.04,6.53423941]
[1748880388875,38.8221352,153.06,153.05,26.0]
[1748880389076,38.8221352,153.06,153.05,32.53381247]
[1748880389371,38.8221352,153.06,153.05,6.53381247]
[1748880389879,10.84,153.08,153.05,6.53381247]
[1748880390178,38.8221352,153.06,153.05,6.53381247]
[1748880390499,10.84,153.08,153.05,48.86834366]
[1748880391259,0.14216157,153.14,153.07,38.8221352]
[1748880391469,38.8221352,153.1,153.06,38.8221352]
[1748880391856,38.8221352,153.09,153.05,48.86834366]
[1748880392063,38.8221352,153.09,153.05,89.66834366]
[1748880392572,38.8221352,153.08,153.05,89.66834366]
[1748880392783,38.8221352,153.07,153.05,6.53381247]
[1748880392954,38.8221352,153.06,153.05,6.53381247]
[1748880393285,38.8221352,153.06,153.03,6.5346664]
[1748880393475,38.8221352,153.05,153.03,6.5346664]
[1748880393687,10.84,153.07,153.03,6.5346664]
[1748880393970,38.8221352,153.04,153.03,6.5346664]
[1748880394375,0.28432314,153.03,153.0,6.53594771]
[1748880394596,38.8221352,153.01,152.97,6.53722952]
[1748880394756,38.8221352,152.99,152.97,6.53722952]
[1748880395360,38.8221352,152.99,152.96,22.8807379]
[1748880395557,38.8221352,152.98,152.96,22.8807379]
[1748880397677,38.8221352,152.97,152.96,6.5376569]
[1748880398067,0.28432314,153.01,152.96,6.5376569]
[1748880398283,38.8221352,152.97,152.96,6.5376569]
[1748880399989,0.14216157,153.02,152.96,6.5376569]
[1748880400172,10.84,152.99,152.96,6.5376569]
[1748880400378,10.84,152.99,152.96,22.88179915]
[1748880400569,10.84,153.02,152.96,61.70393435]
[1748880400763,49.6621352,153.02,152.97,38.8221352]
[1748880401095,38.8221352,153.01,152.96,102.50393435]
[1748880402576,38.8221352,153.0,152.96,102.50393435]
[1748880402775,38.8221352,152.99,152.96,63.68179915]
[1748880403014,10.84,153.02,152.96,63.68179915]
[1748880403015,38.8221352,153.0,152.96,63.68179915]
[1748880403875,38.8221352,153.01,152.96,102.50393435]
[1748880404485,38.8221352,153.0,152.96,63.68179915]
[1748880405089,38.8221352,153.01,152.96,102.50393435]
[1748880405678,10.84,153.04,152.98,26.0]
[1748880405886,10.84,153.04,153.02,6.53509345]
[1748880406496,20.23404886,153.09,153.03,38.8221352]
[1748880406497,10.84,153.09,153.03,38.8221352]
[1748880406681,38.8221352,153.08,153.03,38.8221352]
[1748880407000,38.8221352,153.07,153.03,38.8221352]
[1748880407178,38.8221352,153.08,153.03,38.8221352]
[1748880407685,38.8221352,153.07,153.02,63.67282707]
[1748880407891,38.8221352,153.06,153.02,22.87282707]
[1748880408490,38.3221352,153.06,153.02,22.87282707]
[1748880409814,38.8221352,153.05,153.02,22.87282707]
[1748880410020,38.8221352,153.05,153.02,6.53509345]
[1748880410196,38.8221352,153.03,153.0,6.53594771]
[1748880410383,38.8221352,153.01,153.0,6.53594771]
[1748880411202,38.8221352,153.01,152.96,63.67901287]
[1748880411513,38.8221352,152.99,152.97,6.53722952]
[1748880412107,38.8221352,153.0,152.97,22.88030332]
[1748880413796,38.8221352,152.99,152.97,22.88030332]
[1748880413999,38.8221352,152.98,152.97,22.88030332]
[1748880414795,38.8221352,152.99,152.97,22.88030332]
[1748880415397,38.8221352,153.0,152.97,22.88030332]
[1748880416912,38.8221352,152.99,152.97,22.88030332]
[1748880418882,38.8221352,153.01,152.97,22.88030332]
[1748880419089,49.6621352,153.04,152.99,64.8221352]
[1748880420293,10.84,153.04,153.01,38.8221352]
[1748880420492,3.73023973,153.08,153.03,38.8221352]
[1748880420493,10.84,153.08,153.03,38.8221352]
[1748880420702,10.84,153.08,153.05,38.8221352]
[1748880420920,38.8221352,153.06,153.02,26.0]
[1748880421216,38.8221352,153.06,153.0,29.34111699]
[1748880421217,38.8221352,153.04,153.0,87.69795219]
[1748880421386,38.8221352,153.02,153.0,32.53594771]
[1748880421590,38.8221352,153.02,153.0,6.53594771]
[1748880421790,38.8221352,153.01,153.0,6.53594771]
[1748880421990,38.8221352,153.01,152.96,40.3317352]
[1748880421991,0.42648471,153.0,152.94,22.88384511]
[1748880422191,38.8221352,152.95,152.92,22.88778445]
[1748880422416,38.8221352,152.97,152.95,26.0]
[1748880422632,38.8221352,153.0,152.95,64.8221352]
[1748880422995,38.8221352,152.99,152.95,26.0]
[1748880423237,11.12432314,153.02,152.95,26.0]
[1748880423238,38.8221352,152.98,152.95,26.0]
[1748880424107,38.8221352,152.97,152.95,26.0]
[1748880424293,38.8221352,152.96,152.95,32.53808434]
[1748880424695,38.8221352,152.96,152.95,6.53808434]
[1748880426914,49.6621352,152.97,152.94,6.53851183]
[1748880427114,38.8221352,153.0,152.96,38.8221352]
[1748880427300,38.8221352,152.99,152.95,38.8221352]
[1748880427696,38.8221352,152.99,152.94,102.50692661]
[1748880428118,38.8221352,152.98,152.94,63.68479141]
[1748880429323,38.8221352,152.97,152.94,63.68479141]
[1748880429528,10.84,153.0,152.94,22.88479141]
[1748880429529,38.8221352,152.96,152.94,22.88479141]
[1748880430607,38.8221352,152.95,152.94,6.53851183]
[1748880430930,49.6621352,152.95,152.92,6.53936698]
[1748880431099,38.8221352,152.93,152.92,6.53936698]
[1748880431296,38.8221352,152.93,152.91,6.53979465]
[1748880432606,38.8221352,152.92,152.91,6.53979465]
[1748880433411,38.8221352,152.93,152.91,6.53979465]
[1748880433718,49.6621352,152.95,152.91,22.88928127]
[1748880433922,10.84,152.95,152.91,61.71141647]
[1748880434299,38.8221352,152.94,152.91,6.53979465]
[1748880434603,38.8221352,152.93,152.91,6.53979465]
[1748880436228,10.84,152.95,152.91,6.53979465]
[1748880436412,38.8221352,152.94,152.91,6.53979465]
[1748880436733,38.8221352,152.94,152.91,22.88928127]
[1748880436902,38.8221352,152.94,152.91,6.53979465]
[1748880437105,38.8221352,152.92,152.91,6.53979465]
[1748880437536,38.8221352,152.93,152.91,6.53979465]
[1748880438633,38.8221352,152.92,152.91,6.53979465]
[1748880438828,38.8221352,152.92,152.9,6.54018891]
[1748880439033,0.28432314,152.9,152.85,6.54236179]
[1748880439219,38.8221352,152.87,152.85,6.54236179]
[1748880439429,38.8221352,152.86,152.85,6.54236179]
[1748880439743,38.8221352,152.87,152.85,6.54236179]
[1748880440119,38.8221352,152.87,152.84,22.89875192]
[1748880441213,10.98216157,152.9,152.84,22.89875192]
[1748880441415,0.14216157,152.91,152.85,38.8221352]
[1748880441609,10.84,152.9,152.87,38.8221352]
[1748880441922,10.84,152.93,152.89,38.8221352]
[1748880442133,49.6621352,152.93,152.9,6.54022236]
[1748880443110,49.6621352,152.93,152.9,22.89077827]
[1748880444336,0.28432314,152.95,152.9,22.89077827]
[1748880444532,10.84,152.94,152.91,38.8221352]
[1748880445045,10.84,152.94,152.9,87.71291347]
[1748880446123,38.96429677,152.96,152.91,38.8221352]
[1748880446324,10.84,152.96,152.93,38.8221352]
[1748880446633,38.8221352,152.98,152.9,122.4118901]
[1748880446634,10.84,152.98,152.94,38.8221352]
[1748880447214,49.6621352,152.98,152.93,26.0]
[1748880447518,38.8221352,152.95,152.9,61.71291347]
[1748880447736,38.8221352,152.94,152.9,48.89077827]
[1748880448440,0.42648471,152.97,152.9,48.89077827]
[1748880448441,49.6621352,152.93,152.9,48.89077827]
[1748880448757,10.84,152.93,152.9,48.89077827]
[1748880449426,10.84,152.93,152.9,22.89077827]
[1748880449755,10.84,152.93,152.9,6.54022236]
[1748880449756,38.8221352,152.92,152.9,6.54022236]
[1748880450126,38.8221352,152.92,152.89,6.54065014]
[1748880450328,38.8221352,152.9,152.89,6.54065014]
[1748880450841,39.10645834,152.9,152.87,6.54150585]
[1748880451035,38.8221352,152.88,152.87,6.54150585]
[1748880451218,49.94645834,152.88,152.85,6.54236179]
[1748880451418,38.8221352,152.86,152.83,6.54321795]
[1748880451647,38.8221352,152.85,152.83,6.54321795]
[1748880451823,0.14216157,152.91,152.84,38.8221352]
[1748880452159,10.84,152.89,152.87,6.54150585]
[1748880452324,10.84,152.89,152.87,45.36364105]
[1748880452514,10.84,152.89,152.87,44.86364105]
[1748880453118,38.8221352,152.91,152.87,6.04150585]
[1748880453342,10.84,152.9,152.87,6.04150585]
[1748880453539,10.84,152.9,152.87,22.39527048]
[1748880453726,10.84,152.9,152.87,61.21740568]
[1748880454350,39.10645834,152.92,152.88,38.8221352]
[1748880454549,10.84,152.91,152.88,38.8221352]
[1748880455354,10.84,152.91,152.87,61.21740568]
[1748880457256,49.6621352,152.91,152.87,61.21740568]
[1748880458263,49.6621352,152.91,152.87,22.39527048]
[1748880458648,49.6621352,152.91,152.87,61.21740568]
[1748880459362,10.84,152.91,152.87,61.21740568]
[1748880460165,1.6616,152.96,152.9,38.8221352]
[1748880460339,10.84,152.95,152.91,38.8221352]
[1748880460540,10.27165121,153.0,152.94,38.8221352]
[1748880460541,5.36076298,153.0,152.94,38.8221352]
[1748880460747,10.84,152.99,152.96,38.8221352]
[1748880460954,38.8221352,152.98,152.93,26.0]
[1748880461157,38.8221352,152.97,152.93,26.0]
[1748880461368,38.8221352,152.95,152.93,6.53893938]
[1748880461868,0.14216157,152.97,152.93,6.53893938]
[1748880461869,38.8221352,152.94,152.93,6.53893938]
[1748880462064,49.6621352,152.94,152.93,6.53893938]
[1748880462871,10.84,152.94,152.93,6.53893938]
[1748880463371,10.84,152.94,152.91,6.53979465]
[1748880463670,10.84,152.94,152.91,22.88928127]
[1748880465366,49.6621352,152.94,152.9,6.54022236]
[1748880465754,10.84,152.94,152.9,45.36235756]
[1748880465958,10.84,152.94,152.9,61.71291347]
[1748880467273,10.84,152.94,152.9,46.20820168]
[1748880468269,10.84,152.94,152.93,49.31742341]
[1748880468472,34.13742341,152.98,152.93,49.31742341]
[1748880468853,23.31742341,152.95,152.91,26.0]
[1748880469060,23.31742341,152.94,152.91,26.0]
[1748880469350,38.86711277,152.95,152.91,26.0]
[1748880469673,10.82,152.98,152.94,38.86711277]
[1748880470671,38.86711277,152.99,152.94,38.86711277]
[1748880470850,49.68711277,152.99,152.94,38.86711277]
[1748880471572,49.68711277,152.99,152.95,6.53808434]
[1748880471748,38.86711277,152.99,152.95,6.53808434]
[1748880471953,49.68711277,152.99,152.95,6.53808434]
[1748880472370,49.68711277,152.99,152.95,22.88329519]
[1748880474071,38.86711277,152.98,152.95,6.53808434]
[1748880474448,38.86711277,152.96,152.93,6.53893938]
[1748880475577,38.86711277,152.95,152.93,6.53893938]
[1748880476657,39.15143591,152.94,152.88,22.89366449]
[1748880476867,38.86711277,152.93,152.88,61.76077726]
[1748880477067,38.86711277,152.93,152.89,26.0]
[1748880477682,38.86711277,152.93,152.9,22.89077827]
[1748880478066,49.97143591,152.94,152.9,22.89077827]
[1748880478589,38.86711277,152.93,152.9,6.54022236]
[1748880479390,38.86711277,152.93,152.87,46.8607]
[1748880479391,38.86711277,152.91,152.83,38.78148977]
[1748880479572,38.86711277,152.86,152.84,6.54278984]
[1748880479776,38.86711277,152.86,152.83,22.42337773]
[1748880479777,38.86711277,152.86,152.83,22.90119568]
[1748880480087,38.86711277,152.86,152.83,32.54321795]
[1748880480390,38.86711277,152.85,152.83,6.54321795]
[1748880480783,38.86711277,152.85,152.83,32.54321795]
[1748880483467,38.86711277,152.86,152.83,32.54321795]
[1748880483763,49.68711277,152.88,152.84,38.86711277]
[1748880483963,38.86711277,152.87,152.83,32.54321795]
[1748880484162,38.86711277,152.86,152.83,32.54321795]
[1748880484714,10.82,152.87,152.83,71.41033072]
[1748880484903,10.82,152.87,152.83,87.7683756]
[1748880485491,49.68711277,152.87,152.83,87.7683756]
[1748880487099,38.86711277,152.87,152.83,87.7683756]
[1748880487494,10.84,152.89,152.85,38.86711277]
[1748880488137,49.70711277,152.89,152.86,6.54193379]
[1748880488310,38.86711277,152.88,152.86,6.54193379]
[1748880489301,23.33823245,152.88,152.86,6.54193379]
[1748880489703,34.17823245,152.89,152.86,6.54193379]
[1748880489889,10.84,152.89,152.86,6.54193379]
[1748880490093,10.84,152.89,152.86,29.88016624]
[1748880490701,34.46255559,152.9,152.86,29.88016624]
[1748880491001,34.46255559,152.9,152.86,6.54193379]
[1748880491941,3.74043623,152.93,152.9,26.0]
[1748880492221,10.84,152.94,152.92,23.33823245]
[1748880492429,3.73850334,152.98,152.93,23.33823245]
[1748880492601,34.17823245,152.97,152.93,23.33823245]
[1748880492794,0.28432314,152.96,152.92,23.33823245]
[1748880493424,34.17823245,152.97,152.92,23.33823245]
[1748880493922,0.28432314,152.96,152.92,23.33823245]
[1748880494120,34.17823245,152.97,152.93,6.53893938]
[1748880494327,1.6114,153.01,152.95,23.33823245]
[1748880494546,34.17823245,153.0,152.95,23.33823245]
[1748880494695,23.33823245,152.99,152.94,23.33823245]
[1748880495191,38.84358226,152.98,152.93,22.88628784]
[1748880495392,0.28432314,152.97,152.93,45.38252164]
[1748880495998,38.84358226,152.98,152.93,61.7298701]
[1748880496222,10.84,153.0,152.94,38.84358226]
[1748880496223,38.84358226,152.99,152.94,38.84358226]
[1748880496527,38.84358226,152.98,152.93,61.7298701]
[1748880496910,38.84358226,152.98,152.94,38.84358226]
[1748880497216,0.14216157,152.99,152.96,38.84358226]
[1748880497405,0.28432314,152.99,152.95,38.84358226]
[1748880498096,0.28432314,152.99,152.96,6.5376569]
[1748880498294,49.68358226,153.0,152.96,6.5376569]
[1748880498295,10.84,153.0,152.97,38.84358226]
[1748880498706,10.84,153.0,152.96,61.72538141]
[1748880500128,49.68358226,153.0,152.96,6.5376569]
[1748880500426,38.84358226,152.98,152.96,6.5376569]
[1748880502212,38.84358226,152.98,152.95,6.53808434]
[1748880503167,39.1279054,152.99,152.95,45.3816666]
[1748880506127,0.28432314,152.99,152.94,6.53840692]
[1748880506324,38.84358226,152.96,152.94,6.53840692]
[1748880506525,38.98574383,152.95,152.9,6.54022236]
[1748880506714,38.84358226,152.92,152.9,6.54022236]
[1748880506919,11.10432314,152.95,152.9,6.54022236]
[1748880506920,38.84358226,152.93,152.9,6.54022236]
[1748880507324,38.84358226,152.95,152.9,61.73436053]
[1748880507515,10.82,152.94,152.9,61.73436053]
[1748880507711,49.66358226,152.94,152.9,61.73436053]
[1748880508180,10.82,152.94,152.91,38.84358226]
[1748880508742,10.82,152.94,152.92,6.53936698]
[1748880511050,38.84358226,152.97,152.92,87.73136671]
[1748880511234,10.96460838,153.03,152.95,38.84358226]
[1748880511235,0.28432314,152.98,152.95,38.84358226]
[1748880511744,38.98574383,152.98,152.93,79.64358226]
[1748880512641,38.84358226,152.97,152.93,40.8]
[1748880512848,38.84358226,152.97,152.94,6.53851183]
[1748880513051,39.1279054,152.98,152.94,6.53851183]
[1748880513416,38.84358226,152.95,152.9,42.35053435]
[1748880513619,38.84358226,152.95,152.89,6.54065014]
[1748880513620,38.84358226,152.91,152.89,6.54065014]
[1748880513822,38.84358226,152.92,152.89,6.54065014]
[1748880517090,38.84358226,152.9,152.88,6.54088552]
[1748880517373,38.84358226,152.89,152.88,6.54088552]
[1748880517682,38.84358226,152.9,152.88,6.54088552]
[1748880518213,0.42648471,152.92,152.88,6.54088552]
[1748880518350,39.1279054,152.92,152.88,6.54088552]
[1748880518768,38.84358226,152.91,152.88,6.54088552]
[1748880519483,0.28432314,152.92,152.88,6.54088552]
[1748880519658,38.84358226,152.91,152.88,6.54088552]
[1748880521787,39.1279054,152.92,152.88,22.89358044]
[1748880522176,10.82,152.94,152.9,38.84358226]
[1748880522571,10.82,153.0,152.93,64.84358226]
[1748880522779,10.82,153.0,152.94,61.72837367]
[1748880523086,38.84358226,152.98,152.94,22.88479141]
[1748880523679,38.84358226,152.98,152.94,6.53851183]
[1748880523886,38.84358226,152.97,152.94,6.53851183]
[1748880527569,39.1279054,152.96,152.93,32.53883277]
[1748880527775,38.84358226,152.95,152.93,32.53883277]
[1748880527972,10.82,152.95,152.93,6.53883277]
[1748880528708,39.1279054,152.97,152.93,6.53883277]
[1748880528864,39.1279054,152.97,152.93,61.72976349]
[1748880528865,10.82,152.97,152.93,61.72976349]
[1748880529210,49.66358226,152.97,152.93,61.72976349]
[1748880529780,49.66358226,152.97,152.93,22.88618123]
[1748880530093,38.84358226,152.96,152.93,6.53883277]
[1748880530269,38.84358226,152.95,152.93,6.53883277]
[1748880530597,38.84358226,152.96,152.93,6.53883277]
[1748880531098,38.84358226,152.95,152.92,6.53936698]
[1748880531798,0.28432314,152.96,152.92,6.53936698]
[1748880531799,38.84358226,152.94,152.92,6.53936698]
[1748880531979,38.84358226,152.94,152.91,6.53966171]
[1748880533267,38.84358226,152.92,152.9,32.54004494]
[1748880533486,38.84358226,152.91,152.9,32.54004494]
[1748880533794,38.84358226,152.91,152.88,6.54107796]
[1748880533993,38.84358226,152.9,152.88,6.54107796]
[1748880534794,38.84358226,152.89,152.87,6.54133485]
[1748880534980,0.28432314,152.91,152.87,6.54133485]
[1748880534981,38.84358226,152.88,152.87,6.54133485]
[1748880535276,38.84358226,152.88,152.85,6.54236179]
[1748880535577,49.66358226,152.87,152.85,6.54236179]
[1748880536769,0.28432314,152.85,152.79,6.54493095]
[1748880536980,38.84358226,152.84,152.8,38.84358226]
[1748880537181,0.28432314,152.85,152.79,6.54493095]
[1748880537182,38.84358226,152.81,152.79,6.54493095]
[1748880537405,38.84358226,152.8,152.79,6.54493095]
[1748880537606,49.66358226,152.81,152.79,6.54493095]
[1748880538191,49.66358226,152.81,152.78,6.54535934]
[1748880540687,38.84358226,152.79,152.73,17.95193595]
[1748880540886,38.84358226,152.75,152.74,6.54707345]
[1748880541090,49.66358226,152.75,152.74,6.54707345]
[1748880541814,10.82,152.75,152.74,6.54707345]
[1748880541996,61.14931043,152.8,152.74,45.39065571]
[1748880541997,10.82,152.78,152.74,45.39065571]
[1748880542314,49.66358226,152.78,152.74,6.54707345]
[1748880542615,38.84358226,152.77,152.74,6.54707345]
[1748880543017,10.82,152.78,152.74,6.54707345]
[1748880543018,38.98574383,152.76,152.74,6.54707345]
[1748880543319,38.84358226,152.75,152.74,6.54707345]
[1748880544012,38.84358226,152.76,152.74,6.54707345]
[1748880544205,10.82,152.77,152.76,6.54621628]
[1748880544417,10.82,152.79,152.76,45.38979854]
[1748880544586,0.28432314,152.8,152.76,45.38979854]
[1748880544785,10.82,152.79,152.76,45.38979854]
[1748880545015,10.82,152.79,152.76,61.75533925]
[1748880545195,10.82,152.81,152.77,38.84358226]
[1748880545718,10.82,152.81,152.78,38.84358226]
[1748880546015,10.82,152.83,152.8,38.84358226]
[1748880546186,10.82,152.83,152.81,6.54407434]
[1748880547209,10.82,152.83,152.81,45.3876566]
[1748880547516,10.82,152.83,152.82,38.84358226]
[1748880547811,10.82,152.86,152.82,38.84358226]
[1748880548015,49.66358226,152.86,152.82,38.84358226]
[1748880548252,10.82,152.86,152.82,38.84358226]
[1748880548392,10.82,152.86,152.83,6.54321795]
[1748880549213,10.82,152.86,152.83,6.04321795]
[1748880549805,0.28432314,152.88,152.83,61.24484509]
[1748880550118,78.60216157,152.89,152.83,61.24484509]
[1748880550119,78.46,152.89,152.85,38.84358226]
[1748880550609,89.28,152.89,152.86,45.38551605]
[1748880550823,38.84358226,152.87,152.82,6.54364611]
[1748880551006,38.84358226,152.85,152.82,6.54364611]
[1748880554109,38.84358226,152.83,152.81,6.54401351]
[1748880554307,0.28432314,152.81,152.75,38.84358226]
[1748880554631,38.84358226,152.8,152.78,26.0]
[1748880555003,38.84358226,152.8,152.76,26.0]
[1748880555204,38.84358226,152.8,152.75,102.57683921]
[1748880557134,38.84358226,152.8,152.77,6.54578778]
[1748880558914,49.66358226,152.79,152.77,6.54578778]
[1748880559725,17.86206601,152.86,152.78,38.84358226]
[1748880559726,10.82,152.8,152.78,38.84358226]
[1748880559932,49.66358226,152.82,152.78,38.84358226]
[1748880560741,49.66358226,152.82,152.79,6.54493095]
[1748880561248,10.82,152.82,152.79,22.90725832]
[1748880561414,10.82,152.82,152.81,64.84358226]
[1748880561735,10.82,152.85,152.81,64.84358226]
[1748880562518,10.82,152.85,152.81,26.0]
[1748880562723,38.84358226,152.82,152.78,16.3629951]
[1748880562918,0.42648471,152.83,152.78,42.3629951]
[1748880562919,38.84358226,152.81,152.78,42.3629951]
[1748880564423,38.84358226,152.82,152.78,42.3629951]
[1748880564945,39.1279054,152.83,152.78,87.7519367]
[1748880565443,38.84358226,152.82,152.78,48.90835444]
[1748880565839,38.98574383,152.84,152.78,87.7519367]
[1748880566043,38.98574383,152.84,152.79,38.84358226]
[1748880566220,38.84358226,152.84,152.79,38.84358226]
[1748880566926,38.84358226,152.84,152.8,6.54450261]
[1748880568930,39.27006697,152.83,152.79,6.54493095]
[1748880569127,39.27006697,152.83,152.77,38.84358226]
[1748880569128,38.84358226,152.8,152.77,6.54578778]
[1748880569349,38.84358226,152.78,152.77,6.54578778]
[1748880570251,38.84358226,152.79,152.77,6.54578778]
[1748880570416,49.66358226,152.8,152.77,6.54578778]
[1748880571153,1.95558471,152.83,152.77,22.91025724]
[1748880571333,10.82,152.82,152.79,38.84358226]
[1748880571646,49.66358226,152.85,152.8,38.84358226]
[1748880571830,10.82,152.85,152.81,38.84358226]
[1748880572250,10.82,152.85,152.82,6.54364611]
[1748880573140,10.82,152.85,152.82,22.9027614]
[1748880573524,92.43372436,152.89,152.83,38.84358226]
[1748880573846,92.43372436,152.89,152.82,48.9027614]
[1748880573847,10.82,152.88,152.84,38.84358226]
[1748880574047,49.66358226,152.88,152.83,38.84358226]
[1748880574248,49.66358226,152.88,152.84,22.89976445]
[1748880574552,10.82,152.88,152.84,61.74334671]
[1748880574767,13.83156279,152.89,152.86,38.84358226]
[1748880574920,13.83156279,152.89,152.87,38.84358226]
[1748880575125,18.64964886,152.95,152.88,38.84358226]
[1748880575126,10.82,152.94,152.88,38.84358226]
[1748880575329,10.82,152.94,152.9,38.84358226]
[1748880575745,38.84358226,152.93,152.89,26.0]
[1748880576127,49.66358226,152.94,152.89,64.84358226]
[1748880576436,10.82,152.94,152.92,38.84358226]
[1748880576848,10.82,152.94,152.91,61.73286353]
[1748880577140,49.66358226,152.94,152.91,6.53979465]
[1748880577354,38.84358226,152.93,152.9,6.54008391]
[1748880581623,10.82,152.94,152.9,6.54008391]
[1748880581824,10.82,152.96,152.93,38.84358226]
[1748880582241,49.66358226,152.96,152.91,38.84358226]
[1748880582869,49.66358226,152.96,152.92,6.53936698]
[1748880583255,38.84358226,152.95,152.92,6.53936698]
[1748880583453,38.84358226,152.93,152.9,6.54022236]
[1748880583863,10.82,152.93,152.9,45.38380462]
[1748880584050,10.82,152.93,152.9,61.73436053]
[1748880586776,10.82,152.93,152.9,22.89077827]
[1748880586979,10.82,152.93,152.9,61.73436053]
[1748880587472,10.82,152.93,152.9,22.89077827]
[1748880588063,10.82,152.93,152.9,61.73436053]
[1748880588757,49.66358226,152.96,152.92,64.84358226]
[1748880588952,10.82,152.96,152.93,45.38252164]
[1748880589159,117.34358226,152.99,152.94,38.84358226]
[1748880589483,128.16358226,152.99,152.94,38.84358226]
[1748880589671,38.84358226,152.98,152.94,38.84358226]
[1748880589862,38.84358226,152.98,152.93,61.7298701]
[1748880590067,38.84358226,152.96,152.93,6.53893938]
[1748880590759,38.84358226,152.97,152.93,6.53893938]
[1748880591366,89.60432314,152.99,152.93,6.53893938]
[1748880591367,38.84358226,152.96,152.93,6.53893938]
[1748880592887,38.84358226,152.94,152.93,6.53893938]
[1748880593086,6.96350327,152.98,152.93,6.53893938]
[1748880593087,38.84358226,152.95,152.93,6.53893938]
[1748880593387,10.8,152.96,152.93,61.7298701]
[1748880593903,49.64358226,152.96,152.93,6.53893938]
[1748880596706,38.84358226,152.95,152.92,32.53918455]
[1748880596908,38.84358226,152.93,152.9,26.0]
[1748880597190,38.84358226,152.93,152.9,32.54022236]
[1748880599086,38.84358226,152.93,152.9,6.54022236]
[1748880599409,38.84358226,152.92,152.9,6.54022236]
[1748880599689,38.84358226,152.93,152.9,6.54022236]